fUST/lending_fUST_20250912
["ID","MTS","AMOUNT","RATE_DAILY","PERIOD"]
[385019347,1757645441164,-480.0,0.00015724,2]
[385019349,1757645441174,-1495.66,0.00015724,2]
[385019351,1757645441183,-480.0,0.00015724,2]
[385019353,1757645441191,-480.0,0.00015724,2]
[385019355,1757645441200,-577.23125899,0.00015724,2]
[385019357,1757645441209,-480.0,0.00015724,2]
[385019359,1757645441218,-480.0,0.00015724,2]
[385019361,1757645441227,-480.0,0.00015724,2]
[385019363,1757645441236,-480.0,0.00015724,2]
[385019364,1757645441245,-531.40118905,0.00015724,2]
[385019365,1757645441253,-674.92,0.00015724,2]
[385019366,1757645441262,-866.32,0.00015724,2]
[385019367,1757645441272,-480.0,0.00015725,2]
[385019368,1757645441281,-480.0,0.00015725,2]
[385019369,1757645441290,-480.0,0.00015725,2]
[385019370,1757645441298,-480.0,0.00015725,2]
[385019371,1757645441307,-2932.05,0.00015725,2]
[385019372,1757645441316,-480.0,0.00015736,2]
[385019374,1757645441325,-305.77958319,0.00015736,2]
[385019376,1757645441334,-480.0,0.00015736,2]
[385019378,1757645441343,-504.53485017,0.00015736,2]
[385019380,1757645441352,-480.0,0.00015736,2]
[385019382,1757645441361,-480.0,0.00015736,2]
[385019384,1757645441371,-329.56411804,0.00015736,2]
[385019386,1757645441380,-480.0,0.00015736,2]
[385019388,1757645441390,-480.0,0.00015736,2]
[385019390,1757645441399,-480.0,0.00015736,2]
[385019392,1757645441409,-1000.0,0.00015836,2]
[385019394,1757645441419,-1000.0,0.00015848,2]
[385019396,1757645441427,-1000.0,0.00015848,2]
[385019398,1757645441437,-1007.72438835,0.00015854,2]
[385019400,1757645441446,-517.9468469,0.00015877,2]
[385019402,1757645441455,-480.0,0.00015998,2]
[385019415,1757645441565,-480.0,0.00015998,2]
[385019417,1757645441575,-480.0,0.00015998,2]
[385019419,1757645441586,-480.0,0.00015998,2]
[385019421,1757645441595,-480.0,0.00015998,2]
[385019423,1757645441605,-480.0,0.00015998,2]
[385019425,1757645441615,-480.0,0.00015998,2]
[385019427,1757645441624,-470.03124356,0.00015998,2]
[385019429,1757645441636,-480.0,0.00015998,2]
[385019431,1757645441646,-480.0,0.00015998,2]
[385019433,1757645441655,-480.0,0.00015998,2]
[385019435,1757645441665,-480.0,0.00015998,2]
[385019437,1757645441675,-480.0,0.00015998,2]
[385019439,1757645441683,-480.0,0.00015998,2]
[385019441,1757645441693,-480.0,0.00015998,2]
[385019443,1757645441702,-480.0,0.00015998,2]
[385019445,1757645441711,-238.55900896,0.00015998,2]
[385019447,1757645441720,-480.0,0.00015998,2]
[385019449,1757645441730,-480.0,0.00015998,2]
[385019451,1757645441740,-480.0,0.00015998,2]
[385019454,1757645441749,-1495.66,0.00015998,2]
[385019456,1757645441759,-480.0,0.00015998,2]
[385019458,1757645441768,-480.0,0.00015998,2]
[385019460,1757645441777,-438.82938834,0.00015998,2]
[385019462,1757645441786,-480.0,0.00015998,2]
[385019464,1757645441795,-480.0,0.00015998,2]
[385019466,1757645441804,-480.0,0.00015998,2]
[385019468,1757645441813,-674.92,0.00015998,2]
[385019470,1757645441823,-866.32,0.00015998,2]
[385019472,1757645441832,-382.68,0.00015999,2]
[385019474,1757645441841,-480.0,0.00015999,2]
[385019476,1757645441851,-480.0,0.00015999,2]
[385019478,1757645441859,-2932.05,0.00015999,2]
[385019480,1757645441868,-480.0,0.0001601,2]
[385019482,1757645441878,-480.0,0.0001601,2]
[385019484,1757645441890,-480.0,0.0001601,2]
[385019486,1757645441899,-480.0,0.0001601,2]
[385019488,1757645441908,-480.0,0.0001601,2]
[385019490,1757645441917,-480.0,0.0001601,2]
[385019492,1757645441927,-615.20517676,0.0001601,2]
[385019494,1757645441936,-420.0,0.00016015,2]
[385019496,1757645441945,-1003.4264393,0.0001604,2]
[385019498,1757645441953,-1680.0,0.0001609,2]
[385019500,1757645441963,-480.0,0.00016272,2]
[385019502,1757645441972,-480.0,0.00016272,2]
[385019504,1757645441981,-453.28,0.00016272,2]
[385019506,1757645441990,-480.0,0.00016272,2]
[385019508,1757645442000,-480.0,0.00016272,2]
[385019510,1757645442009,-480.0,0.00016272,2]
[385019512,1757645442019,-480.0,0.00016272,2]
[385019514,1757645442028,-480.0,0.00016272,2]
[385019516,1757645442037,-480.0,0.00016272,2]
[385019518,1757645442046,-480.0,0.00016272,2]
[385019520,1757645442055,-425.65037408,0.00016272,2]
[385019522,1757645442064,-437.15,0.00016272,2]
[385019524,1757645442073,-1495.66,0.00016272,2]
[385019526,1757645442082,-480.0,0.00016272,2]
[385019528,1757645442092,-480.0,0.00016272,2]
[385019530,1757645442101,-480.0,0.00016272,2]
[385019532,1757645442111,-518.58,0.00016272,2]
[385019534,1757645442120,-674.92,0.00016272,2]
[385019536,1757645442130,-866.32,0.00016272,2]
[385019538,1757645442139,-480.0,0.00016273,2]
[385019540,1757645442148,-480.0,0.00016273,2]
[385019542,1757645442157,-2932.05,0.00016273,2]
[385019544,1757645442166,-480.0,0.00016284,2]
[385019546,1757645442175,-480.0,0.00016284,2]
[385019548,1757645442184,-480.0,0.00016284,2]
[385019550,1757645442193,-480.0,0.00016284,2]
[385019552,1757645442203,-480.0,0.00016284,2]
[385019554,1757645442211,-1500.0,0.00016384,2]
[385019556,1757645442222,-1500.0,0.00016396,2]
[385019558,1757645442231,-500.0,0.00016438,2]
[385019560,1757645442239,-500.0,0.00016438,2]
[385019562,1757645442249,-500.0,0.00016438,2]
[385019564,1757645442259,-500.0,0.00016438,2]
[385019566,1757645442269,-500.0,0.00016438,2]
[385019568,1757645442279,-500.0,0.00016438,2]
[385019570,1757645442288,-500.0,0.00016438,2]
[385019572,1757645442297,-480.0,0.00016546,2]
[385019574,1757645442310,-480.0,0.00016546,2]
[385019576,1757645442327,-480.0,0.00016546,2]
[385019578,1757645442336,-480.0,0.00016546,2]
[385019580,1757645442345,-480.0,0.00016546,2]
[385019582,1757645442355,-480.0,0.00016546,2]
[385019584,1757645442364,-480.0,0.00016546,2]
[385019586,1757645442373,-1495.66,0.00016546,2]
[385019588,1757645442383,-480.0,0.00016546,2]
[385019590,1757645442392,-480.0,0.00016546,2]
[385019592,1757645442405,-480.0,0.00016546,2]
[385019594,1757645442419,-674.92,0.00016546,2]
[385019596,1757645442428,-866.32,0.00016546,2]
[385019598,1757645442437,-480.0,0.00016547,2]
[385019600,1757645442446,-480.0,0.00016547,2]
[385019603,1757645442456,-2932.05,0.00016547,2]
[385019605,1757645442464,-480.0,0.00016558,2]
[385019607,1757645442473,-480.0,0.00016558,2]
[385019609,1757645442483,-480.0,0.00016558,2]
[385019611,1757645442492,-480.0,0.00016558,2]
[385019613,1757645442501,-500.0,0.00016558,2]
[385019615,1757645442510,-1084.06349303,0.00016726,2]
[385019617,1757645442519,-720.0,0.00016753,2]
[385019619,1757645442528,-480.0,0.0001682,2]
[385019621,1757645442537,-480.0,0.0001682,2]
[385019623,1757645442547,-480.0,0.0001682,2]
[385019625,1757645442556,-480.0,0.0001682,2]
[385019627,1757645442565,-480.0,0.0001682,2]
[385019629,1757645442574,-480.0,0.0001682,2]
[385019631,1757645442583,-1495.66,0.0001682,2]
[385019633,1757645442592,-480.0,0.0001682,2]
[385019635,1757645442601,-480.0,0.0001682,2]
[385019637,1757645442610,-480.0,0.0001682,2]
[385019639,1757645442619,-674.92,0.0001682,2]
[385019640,1757645442633,-866.32,0.0001682,2]
[385019642,1757645442642,-480.0,0.00016821,2]
[385019644,1757645442651,-480.0,0.00016821,2]
[385019647,1757645442660,-2932.05,0.00016821,2]
[385019648,1757645442669,-296.00219998,0.00016832,2]
[385019650,1757645442678,-480.0,0.00016832,2]
[385019652,1757645442687,-480.0,0.00016832,2]
[385019654,1757645442696,-500.0,0.00016832,2]
[385019657,1757645442705,-152.40059947,0.00016929,2]
[385019659,1757645442714,-2000.0,0.00016932,2]
[385019661,1757645442723,-480.0,0.00017094,2]
[385019662,1757645442732,-501.19884971,0.00017094,2]
[385019664,1757645442741,-480.0,0.00017094,2]
[385019666,1757645442750,-480.0,0.00017094,2]
[385019669,1757645442759,-480.0,0.00017094,2]
[385019671,1757645442768,-480.0,0.00017094,2]
[385019673,1757645442778,-1495.66,0.00017094,2]
[385019674,1757645442787,-480.0,0.00017094,2]
[385019676,1757645442796,-480.0,0.00017094,2]
[385019678,1757645442805,-459.71,0.00017094,2]
[385019680,1757645442814,-674.92,0.00017094,2]
[385019682,1757645442825,-866.32,0.00017094,2]
[385019685,1757645442837,-480.0,0.00017095,2]
[385019687,1757645442846,-480.0,0.00017095,2]
[385019690,1757645442856,-2932.05,0.00017095,2]
[385019691,1757645442865,-480.0,0.00017106,2]
[385019693,1757645442874,-603.92,0.00017106,2]
[385019695,1757645442883,-500.0,0.00017106,2]
[385019697,1757645442893,-578.44950272,0.00017368,2]
[385019699,1757645442902,-480.0,0.00017368,2]
[385019701,1757645442912,-480.0,0.00017368,2]
[385019703,1757645442921,-480.0,0.00017368,2]
[385019705,1757645442930,-480.0,0.00017368,2]
[385019707,1757645442939,-1495.66,0.00017368,2]
[385019709,1757645442949,-227.88,0.00017368,2]
[385019711,1757645442958,-480.0,0.00017368,2]
[385019713,1757645442967,-674.92,0.00017368,2]
[385019715,1757645442976,-866.32,0.00017368,2]
[385019717,1757645442985,-480.0,0.00017369,2]
[385019719,1757645442995,-480.0,0.00017369,2]
[385019721,1757645443005,-2932.05,0.00017369,2]
[385019723,1757645443015,-485.82,0.0001738,2]
[385019725,1757645443024,-500.0,0.0001738,2]
[385019727,1757645443033,-154.57863201,0.00017393,2]
[385019729,1757645443043,-158.93114019,0.00017393,2]
[385019731,1757645443052,-18603.8837,0.00017393,2]
[385019733,1757645443061,-154.23158345,0.00017393,2]
[385019735,1757645443071,-256.98994026,0.00017393,2]
[385019737,1757645443080,-164.02942816,0.00017393,2]
[385019739,1757645443089,-500.0,0.00017393,2]
[385019741,1757645443098,-532.18299788,0.00017393,2]
[385019743,1757645443107,-151.19977967,0.00017393,2]
[385019745,1757645443116,-151.3661364,0.00017393,2]
[385019747,1757645443125,-513.85864079,0.00017393,2]
[385019749,1757645443134,-2500.0,0.0001748,2]
[385019751,1757645443143,-587.0,0.00017534,2]
[385019753,1757645443152,-480.0,0.00017642,2]
[385019755,1757645443161,-480.0,0.00017642,2]
[385019757,1757645443169,-480.0,0.00017642,2]
[385019759,1757645443179,-480.0,0.00017642,2]
[385019761,1757645443188,-1495.66,0.00017642,2]
[385019763,1757645443197,-480.0,0.00017642,2]
[385019765,1757645443206,-674.92,0.00017642,2]
[385019767,1757645443215,-866.32,0.00017642,2]
[385019769,1757645443224,-382.97,0.00017643,2]
[385019771,1757645443233,-480.0,0.00017643,2]
[385019773,1757645443242,-2932.05,0.00017643,2]
[385019775,1757645443251,-385.36645239,0.00017654,2]
[385019777,1757645443260,-1527.0,0.00017699,2]
[385019779,1757645443269,-160.0,0.00017777,2]
[385019781,1757645443278,-1084.06349303,0.00017819,2]
[385019783,1757645443287,-469.67177492,0.00017914,2]
[385019785,1757645443296,-285371.29065236,0.00017914,2]
[385019787,1757645443306,-270.188107,0.00017914,2]
[385019789,1757645443315,-151.0,0.00017914,2]
[385019791,1757645443324,-151.0,0.00017914,2]
[385019793,1757645443334,-151.0,0.00017914,2]
[385019795,1757645443343,-480.0,0.00017916,2]
[385019797,1757645443352,-480.0,0.00017916,2]
[385019799,1757645443361,-480.0,0.00017916,2]
[385019801,1757645443371,-467.51,0.00017916,2]
[385019803,1757645443380,-1495.66,0.00017916,2]
[385019805,1757645443390,-480.0,0.00017916,2]
[385019807,1757645443400,-674.92,0.00017916,2]
[385019809,1757645443408,-866.32,0.00017916,2]
[385019811,1757645443417,-480.0,0.00017917,2]
[385019813,1757645443426,-2932.05,0.00017917,2]
[385019815,1757645443436,-14812.36988539,0.00017941,2]
[385019817,1757645443446,-152.40059948,0.00017972,2]
[385019819,1757645443455,-3000.0,0.00018028,2]
[385019821,1757645443464,-480.0,0.0001819,2]
[385019823,1757645443473,-480.0,0.0001819,2]
[385019825,1757645443482,-528.96,0.0001819,2]
[385019827,1757645443491,-1495.66,0.0001819,2]
[385019829,1757645443501,-239.2,0.0001819,2]
[385019831,1757645443510,-674.92,0.0001819,2]
[385019833,1757645443519,-866.32,0.0001819,2]
[385019835,1757645443528,-480.0,0.00018191,2]
[385019837,1757645443537,-2932.05,0.00018191,2]
[385019839,1757645443546,-260.0,0.00018325,2]
[385019841,1757645443555,-864.0,0.00018428,2]
[385019843,1757645443564,-480.0,0.00018464,2]
[385019845,1757645443573,-480.0,0.00018464,2]
[385019847,1757645443582,-1495.66,0.00018464,2]
[385019849,1757645443591,-674.92,0.00018464,2]
[385019851,1757645443600,-866.32,0.00018464,2]
[385019852,1757645443609,-480.0,0.00018465,2]
[385019854,1757645443618,-2932.05,0.00018465,2]
[385019856,1757645443630,-180.569644,0.00018493,2]
[385019858,1757645443640,-409.0,0.00018494,2]
[385019860,1757645443649,-152.40059947,0.00018528,2]
[385019862,1757645443658,-420.56363564,0.00018575,2]
[385019864,1757645443667,-480.0,0.00018738,2]
[385019866,1757645443677,-480.0,0.00018738,2]
[385019868,1757645443686,-1495.66,0.00018738,2]
[385019870,1757645443696,-674.92,0.00018738,2]
[385019874,1757645443705,-866.32,0.00018738,2]
[385019876,1757645443715,-480.0,0.00018739,2]
[385019878,1757645443724,-2932.05,0.00018739,2]
[385019880,1757645443733,-360.0,0.00018873,2]
[385019881,1757645443742,-339.44485625,0.00018886,2]
[385019883,1757645443751,-303.22133247,0.000189,2]
[385019885,1757645443760,-1084.06349303,0.00018912,2]
[385019887,1757645443770,-11494.67902768,0.0001894,2]
[385019889,1757645443779,-480.0,0.00019012,2]
[385019891,1757645443787,-480.0,0.00019012,2]
[385019893,1757645443796,-1495.66,0.00019012,2]
[385019895,1757645443805,-674.92,0.00019012,2]
[385019897,1757645443814,-866.32,0.00019012,2]
[385019899,1757645443823,-480.0,0.00019013,2]
[385019901,1757645443833,-2932.05,0.00019013,2]
[385019903,1757645443841,-168.0,0.00019083,2]
[385019905,1757645443850,-303.22133247,0.00019089,2]
[385019907,1757645443859,-152.40059948,0.00019101,2]
[385019909,1757645443868,-168.0,0.00019119,2]
[385019911,1757645443877,-173.572,0.00019189,2]
[385019913,1757645443886,-823.0,0.00019197,2]
[385019915,1757645443895,-303.22133247,0.00019278,2]
[385019917,1757645443904,-480.0,0.00019286,2]
[385019919,1757645443913,-480.0,0.00019286,2]
[385019921,1757645443922,-1495.66,0.00019286,2]
[385019923,1757645443931,-674.92,0.00019286,2]
[385019925,1757645443940,-866.32,0.00019286,2]
[385019927,1757645443949,-480.0,0.00019287,2]
[385019929,1757645443958,-2932.05,0.00019287,2]
[385019931,1757645443967,-168.0,0.00019322,2]
[385019933,1757645443976,-168.0,0.00019418,2]
[385019935,1757645443985,-460.0,0.00019421,2]
[385019937,1757645443994,-303.22133247,0.00019467,2]
[385019939,1757645444003,-168.0,0.00019558,2]
[385019941,1757645444012,-563.65,0.0001956,2]
[385019943,1757645444021,-563.16,0.0001956,2]
[385019945,1757645444030,-1495.66,0.0001956,2]
[385019947,1757645444039,-674.92,0.0001956,2]
[385019949,1757645444048,-866.32,0.0001956,2]
[385019951,1757645444057,-480.0,0.00019561,2]
[385019953,1757645444066,-2932.05,0.00019561,2]
[385019964,1757645444165,-303.22133247,0.00019656,2]
[385019967,1757645444175,-152.40059947,0.00019691,2]
[385019968,1757645444184,-168.0,0.00019771,2]
[385019970,1757645444194,-1495.66,0.00019834,2]
[385019972,1757645444203,-674.92,0.00019834,2]
[385019974,1757645444211,-866.32,0.00019834,2]
[385019976,1757645444220,-480.0,0.00019835,2]
[385019978,1757645444229,-2932.05,0.00019835,2]
[385019980,1757645444238,-454.8319987,0.00019845,4]
[385019982,1757645444247,-8007.2461588,0.000199,2]
[385019984,1757645444256,-560.0,0.00019969,2]
[385019986,1757645444265,-168.0,0.00020024,2]
[385019988,1757645444275,-454.8319987,0.00020034,4]
[385019990,1757645444284,-1495.66,0.00020108,2]
[385019992,1757645444294,-674.92,0.00020108,2]
[385019994,1757645444303,-866.32,0.00020108,2]
[385019996,1757645444312,-480.0,0.00020109,2]
[385019998,1757645444321,-2932.05,0.00020109,2]
[385020000,1757645444331,-607.418755,0.00020187,2]
[385020002,1757645444340,-454.8319987,0.00020223,4]
[385020004,1757645444350,-1000.0,0.00020271,20]
[385020006,1757645444360,-151.0,0.00020299,2]
[385020008,1757645444369,-151.0,0.00020299,2]
[385020010,1757645444378,-151.0,0.00020299,2]
[385020012,1757645444388,-151.0,0.00020299,2]
[385020014,1757645444397,-151.945491,0.00020299,2]
[385020016,1757645444406,-151.0,0.00020299,2]
[385020018,1757645444416,-161.051459,0.00020299,2]
[385020020,1757645444425,-153.532687,0.00020299,2]
[385020022,1757645444434,-151.0,0.00020299,2]
[385020024,1757645444443,-151.0,0.00020299,2]
[385020026,1757645444452,-151.0,0.00020299,2]
[385020028,1757645444462,-151.0,0.00020299,2]
[385020030,1757645444471,-8007.24615862,0.00020299,2]
[385020032,1757645444480,-1495.66,0.00020382,2]
[385020034,1757645444490,-674.92,0.00020382,2]
[385020036,1757645444499,-866.32,0.00020382,2]
[385020038,1757645444509,-480.0,0.00020383,2]
[385020040,1757645444518,-2932.05,0.00020383,2]
[385020042,1757645444527,-454.8319987,0.00020412,4]
[385020044,1757645444537,-402.47984193,0.00020517,2]
[385020046,1757645444546,-193.74138,0.00020548,2]
[385020048,1757645444555,-602.86905738,0.00020601,4]
[385020050,1757645444564,-168.0,0.00020621,2]
[385020052,1757645444574,-168.0,0.00020643,2]
[385020054,1757645444584,-168.0,0.00020655,2]
[385020056,1757645444593,-1495.66,0.00020656,2]
[385020058,1757645444602,-674.92,0.00020656,2]
[385020060,1757645444611,-866.32,0.00020656,2]
[385020062,1757645444620,-151.0,0.00020657,2]
[385020064,1757645444634,-151.0,0.00020657,2]
[385020066,1757645444643,-151.0,0.00020657,2]
[385020068,1757645444652,-151.0,0.00020657,2]
[385020070,1757645444661,-480.0,0.00020657,2]
[385020072,1757645444670,-151.0,0.00020657,2]
[385020074,1757645444679,-151.0,0.00020657,2]
[385020076,1757645444689,-151.0,0.00020657,2]
[385020078,1757645444698,-154.057419,0.00020657,2]
[385020080,1757645444707,-154.057419,0.00020657,2]
[385020082,1757645444716,-154.057419,0.00020657,2]
[385020084,1757645444725,-154.057419,0.00020657,2]
[385020086,1757645444734,-2932.05,0.00020657,2]
[385020088,1757645444743,-151.0,0.00020668,2]
[385020090,1757645444752,-154.26924,0.00020668,2]
[385020092,1757645444761,-168.0,0.00020696,2]
[385020094,1757645444770,-8007.24615862,0.00020699,2]
[385020096,1757645444779,-2500.0,0.00020712,2]
[385020098,1757645444789,-151.0,0.0002093,2]
[385020100,1757645444798,-151.0,0.0002093,2]
[385020102,1757645444807,-151.0,0.0002093,2]
[385020104,1757645444816,-153.381209,0.0002093,2]
[385020106,1757645444826,-152.755332,0.0002093,2]
[385020108,1757645444834,-151.0,0.0002093,2]
[385020110,1757645444843,-151.0,0.0002093,2]
[385020112,1757645444852,-151.0,0.0002093,2]
[385020114,1757645444861,-151.0,0.0002093,2]
[385020116,1757645444870,-151.0,0.0002093,2]
[385020118,1757645444882,-151.0,0.0002093,2]
[385020120,1757645444891,-1495.83720723,0.0002093,2]
[385020122,1757645444900,-675.06,0.0002093,2]
[385020124,1757645444910,-866.32,0.0002093,2]
[385020126,1757645444919,-371.74,0.00020931,2]
[385020128,1757645444928,-2932.19137357,0.00020931,2]
[385020130,1757645444936,-1152.0,0.00021018,2]
[385020132,1757645444945,-151.0,0.00021098,2]
[385020134,1757645444954,-8007.24615862,0.00021098,2]
[385020136,1757645444964,-151.0,0.000214,3]
[385020138,1757645444973,-409.0,0.00021494,2]
[385020140,1757645444982,-8007.24615862,0.00021498,2]
[385020142,1757645444991,-151.0,0.00021498,2]
[385020144,1757645445000,-2500.0,0.00021808,2]
[385020146,1757645445009,-151.0,0.00021897,2]
[385020148,1757645445019,-8007.24615862,0.00021897,2]
[385020150,1757645445028,-180.569644,0.00021918,2]
[385020152,1757645445037,-153.0,0.00021918,2]
[385020154,1757645445046,-153.0,0.00021918,2]
[385020156,1757645445055,-153.0,0.00021918,2]
[385020158,1757645445065,-153.0,0.00021918,2]
[385020160,1757645445074,-153.0,0.00021918,2]
[385020162,1757645445084,-153.0,0.00021918,2]
[385020164,1757645445093,-153.0,0.00021918,2]
[385020166,1757645445102,-153.0,0.00021918,2]
[385020168,1757645445111,-153.0,0.00021918,2]
[385020170,1757645445120,-153.0,0.00021918,2]
[385020172,1757645445129,-153.0,0.00021918,2]
[385020174,1757645445138,-153.0,0.00021918,2]
[385020176,1757645445147,-213.24,0.00021918,2]
[385020178,1757645445157,-157.0,0.00021918,2]
[385020180,1757645445166,-500.0,0.00021918,2]
[385020182,1757645445174,-814.2,0.00022,2]
[385020184,1757645445183,-161.084968,0.00022147,2]
[385020186,1757645445193,-161.084968,0.00022148,3]
[385020188,1757645445202,-157.0,0.00022192,2]
[385020190,1757645445211,-512.10199778,0.00022192,2]
[385020192,1757645445221,-151.0,0.000222,7]
[385020194,1757645445230,-1268.5586877,0.00022282,2]
[385020196,1757645445239,-996.575943,0.00022282,2]
[385020198,1757645445248,-8007.24615862,0.00022297,2]
[385020200,1757645445257,-1000.0,0.00022298,20]
[385020202,1757645445267,-244.0,0.00022298,20]
[385020204,1757645445276,-157.0,0.00022466,2]
[385020205,1757645445285,-162.79830867,0.00022548,2]
[385020206,1757645445294,-8007.24615862,0.00022696,2]
[385020207,1757645445303,-151.0,0.00022696,7]
[385020208,1757645445312,-210.305244,0.00022696,7]
[385020209,1757645445321,-207.02705941,0.0002274,2]
[385020210,1757645445330,-154.511059,0.00022778,7]
[385020211,1757645445339,-151.588811,0.00022778,7]
[385020212,1757645445348,-380.0,0.00022778,7]
[385020213,1757645445357,-380.0,0.00022778,7]
[385020214,1757645445366,-380.0,0.00022778,7]
[385020215,1757645445375,-380.0,0.00022778,7]
[385020216,1757645445385,-151.0,0.00022792,7]
[385020217,1757645445395,-151.0,0.00022792,7]
[385020218,1757645445404,-151.0,0.00022792,7]
[385020220,1757645445413,-151.0,0.00022792,7]
[385020221,1757645445423,-151.0,0.00022792,7]
[385020223,1757645445432,-380.0,0.00022792,7]
[385020225,1757645445441,-380.0,0.00022792,7]
[385020227,1757645445450,-380.0,0.00022792,7]
[385020229,1757645445460,-380.0,0.00022792,7]
[385020231,1757645445469,-153.932158,0.00022792,7]
[385020233,1757645445478,-151.0,0.00022792,7]
[385020235,1757645445486,-151.0,0.00022792,7]
[385020237,1757645445497,-151.0,0.00022792,7]
[385020239,1757645445506,-151.0,0.00022792,7]
[385020241,1757645445515,-152.825135,0.00022792,7]
[385020243,1757645445525,-171.558176,0.00022792,7]
[385020244,1757645445534,-151.0,0.00022792,7]
[385020246,1757645445543,-151.0,0.00022792,7]
[385020248,1757645445552,-151.0,0.00022792,7]
[385020250,1757645445561,-151.0,0.00022792,7]
[385020252,1757645445571,-151.0,0.00022792,7]
[385020254,1757645445579,-151.0,0.00022792,7]
[385020256,1757645445589,-164.602516,0.00022792,7]
[385020258,1757645445598,-151.0,0.00022792,7]
[385020260,1757645445607,-151.0,0.00022792,7]
[385020262,1757645445616,-151.0,0.00022792,7]
[385020264,1757645445626,-154.057419,0.00022792,7]
[385020266,1757645445638,-154.057419,0.00022792,7]
[385020268,1757645445647,-154.057419,0.00022792,7]
[385020270,1757645445657,-154.057419,0.00022792,7]
[385020272,1757645445666,-151.0,0.00022792,7]
[385020274,1757645445676,-83806.0555162,0.000228,2]
[385020276,1757645445685,-9611.27,0.000228,7]
[385020278,1757645445694,-2905.35,0.000228,7]
[385020280,1757645445705,-39327.10098022,0.000228,7]
[385020293,1757645445802,-256.386,0.000228,7]
[385024978,1757645544710,907.14657638,0.000151,7]
[385024980,1757645597405,196.44,0.00027397,120]
[385024982,1757645650008,5000.0,0.000151,7]
[385024983,1757645658035,5000.0,0.000151,7]
[385024985,1757645681897,8456.80711045,0.00014238,2]
[385024986,1757645681924,528.03341335,0.00014238,2]
[385024987,1757645705131,6654.82855875,0.00014238,2]
[385024989,1757645802778,287.0,0.00027,120]
[385024990,1757645813371,2500.0,0.00027,120]
[385024991,1757645875412,193.7413815,0.00013699,2]
[385024992,1757645877449,5000.0,0.000151,7]
[385024993,1757645901281,1200.0,0.00014237,2]
[385024994,1757645926069,1200.0,0.00014237,2]
[385024995,1757645949916,223.4066464,0.00014237,2]
[385024996,1757645949939,976.5933536,0.00014237,2]
[385024997,1757645969043,577.047817,0.00013699,2]
[385024999,1757645973839,1200.0,0.00014237,2]
[385025001,1757645998136,1200.0,0.00014237,2]
[385025002,1757646030409,151.0,0.00014267,2]
[385025015,1757646422456,1200.0,0.00014237,2]
[385025042,1757646446223,1500.0,0.00014255,2]
[385025044,1757646469809,1500.0,0.00014255,2]
[385025046,1757646488622,175.9412345,0.00013529,2]
[385025047,1757646493059,1500.0,0.00014255,2]
[385025048,1757646516308,19.4275949,0.00014255,2]
[385025049,1757646516331,1244.06345899,0.00014255,2]
[385025054,1757646625398,766.5218668,0.00013529,2]
[385025063,1757646638539,-300.0,0.00014399,2]
[385025064,1757646638549,-1200.0,0.00014399,2]
[385025065,1757646638559,-10338.13282013,0.000144,2]